bitfinex/quotes_ETHUSD_20251125
["timestamp","ask_amount","ask_price","bid_price","bid_amount"]
[1764108405476,0.9436,2918.1,2918.0,0.001]
[1764108406182,4.37048735,2918.1,2918.0,0.001]
[1764108409282,0.1911,2918.4,2918.0,0.001]
[1764108411182,0.1879,2918.7,2918.0,0.001]
[1764108411984,0.639,2918.7,2918.0,0.001]
[1764108412190,0.31451515,2918.6,2918.0,0.001]
[1764108412395,0.4511,2918.6,2918.0,0.001]
[1764108413369,0.31480533,2918.5,2918.0,0.001]
[1764108413564,0.4511,2918.6,2918.0,0.001]
[1764108413801,0.31480257,2918.5,2918.0,0.001]
[1764108413994,0.639,2918.7,2918.0,0.001]
[1764108414181,0.31480258,2918.6,2918.0,0.001]
[1764108414380,0.31480258,2918.5,2918.0,0.001]
[1764108414579,0.31480258,2918.4,2918.0,0.001]
[1764108414780,0.639,2918.7,2918.0,0.001]
[1764108414979,0.31489278,2918.6,2918.0,0.001]
[1764108415177,0.1879,2918.7,2918.0,0.09536]
[1764108415492,0.31508161,2918.6,2918.0,0.09536]
[1764108415813,0.639,2918.7,2918.0,0.001]
[1764108415998,0.31507865,2918.6,2918.0,0.001]
[1764108416202,0.4511,2919.3,2918.4,4.83594633]
[1764108416411,0.31510749,2919.2,2918.5,0.222]
[1764108416613,0.31510749,2919.1,2918.6,6.85260056]
[1764108416818,0.002,2919.5,2918.7,0.72559411]
[1764108417017,0.31513259,2919.4,2918.7,0.72559411]
[1764108417316,0.002,2919.5,2918.7,0.72559411]
[1764108417478,0.31524294,2919.4,2918.7,0.72559411]
[1764108417820,0.002,2919.5,2918.7,0.72559411]
[1764108418113,0.31524197,2919.4,2918.7,0.72559411]
[1764108418325,0.002,2919.5,2918.7,0.72559411]
[1764108418484,0.31530501,2919.4,2918.8,0.222]
[1764108418686,0.002,2919.5,2918.8,0.222]
[1764108418881,0.315305,2919.4,2918.9,6.85189626]
[1764108419101,0.002,2919.5,2918.9,6.85189626]
[1764108419297,0.31516803,2919.4,2918.9,6.85189626]
[1764108419502,0.002,2919.5,2918.9,6.85189626]
[1764108419747,0.3151394,2919.4,2918.9,6.85189626]
[1764108419925,0.002,2919.5,2918.9,6.85189626]
[1764108420126,0.31508967,2919.4,2918.9,6.85189626]
[1764108420358,0.002,2919.5,2918.9,6.85189626]
[1764108420539,0.31511221,2919.4,2918.9,6.85189626]
[1764108420742,0.002,2919.5,2918.9,6.85189626]
[1764108420937,0.4515,2919.0,2918.7,3.42618288]
[1764108421126,0.6334,2918.8,2918.1,10.28066205]
[1764108421334,0.6334,2918.8,2918.2,0.72559411]
[1764108421852,0.6334,2918.8,2918.1,10.28066205]
[1764108422258,0.6334,2918.8,2918.2,0.72559411]
[1764108422960,0.31499011,2918.7,2918.3,6.853305]
[1764108423124,0.1819,2918.8,2918.3,10.2799575]
[1764108423324,3.42741955,2919.4,2918.4,5.65590044]
[1764108423325,0.4828,2919.4,2918.4,5.65590044]
[1764108423555,0.31504895,2919.3,2918.4,0.72559411]
[1764108423857,0.31504895,2919.2,2918.4,0.94759411]
[1764108424046,0.31504895,2919.1,2918.4,0.94759411]
[1764108424249,0.31504895,2919.0,2918.4,0.94759411]
[1764108424461,0.4808,2919.1,2918.4,0.94759411]
[1764108424753,0.1819,2918.9,2918.4,0.94759411]
[1764108424954,0.1819,2918.9,2918.5,6.85283536]
[1764108425159,0.31500931,2918.8,2918.5,3.42641768]
[1764108425361,0.6627,2918.9,2918.5,6.85283536]
[1764108425529,0.79581175,2918.8,2918.5,6.85283536]
[1764108425725,0.4808,2918.8,2918.5,6.85283536]
[1764108427853,0.1819,2918.9,2918.5,6.85283536]
[1764108428051,0.6627,2918.9,2918.5,6.85283536]
[1764108428450,0.1819,2918.9,2918.5,6.85283536]
[1764108428651,0.4808,2918.8,2918.5,6.85283536]
[1764108429169,0.1819,2918.9,2918.4,6.85307016]
[1764108429676,0.6627,2918.9,2918.4,6.85307016]
[1764108432036,0.002,2919.4,2918.5,0.72559411]
[1764108432475,0.002,2919.4,2918.7,0.09436]
[1764108432640,0.002,2919.4,2918.7,0.31536]
[1764108432840,0.002,2919.4,2918.7,0.221]
[1764108433575,0.002,2919.4,2918.8,6.852131]
[1764108433871,0.4828,2919.4,2918.8,6.852131]
[1764108434073,0.4828,2919.4,2918.8,7.073131]
[1764108434786,0.4828,2919.4,2918.9,5.56154044]
[1764108434787,0.002,2919.4,2918.9,5.56154044]
[1764108435655,0.002,2919.4,2919.0,6.85166152]
[1764108435889,0.4828,2919.4,2919.0,6.85166152]
[1764108436383,0.002,2919.4,2919.0,6.85166152]
[1764108436765,0.002,2919.4,2919.0,10.27749228]
[1764108437163,0.002,2919.4,2919.1,5.56154044]
[1764108437353,0.4828,2919.4,2919.2,0.221]
[1764108437554,0.002,2919.4,2919.3,4.15107282]
[1764108438185,0.002,2919.4,2919.3,4.37207282]
[1764108438667,0.002,2919.4,2919.3,4.15107282]
[1764108438989,0.9343,2919.4,2918.3,4.83594633]
[1764108439212,0.4515,2919.3,2918.1,6.8537747]
[1764108439413,0.002,2919.4,2918.8,4.83594633]
[1764108439693,0.002,2919.4,2918.8,0.221]
[1764108439694,0.1819,2918.9,2918.8,0.221]
[1764108440192,0.002,2919.4,2918.8,0.221]
[1764108440696,0.4744,2919.4,2918.8,0.221]
[1764108440999,0.4744,2919.4,2918.6,6.85260056]
[1764108441174,0.683,2918.9,2918.7,0.221]
[1764108441359,0.4744,2919.4,2918.7,0.221]
[1764108441560,0.1996,2919.3,2918.6,3.42630028]
[1764108441759,0.1996,2919.3,2918.7,0.72559411]
[1764108441998,0.002,2919.4,2918.7,0.81995411]
[1764108442209,0.002,2919.4,2918.9,0.09436]
[1764108442408,0.002,2919.4,2918.9,0.72559411]
[1764108442576,0.4744,2919.4,2919.0,0.221]
[1764108443478,0.4744,2919.4,2918.9,0.72559411]
[1764108443678,0.4744,2919.4,2919.1,6.8514268]
[1764108444107,0.002,2919.4,2919.1,6.8514268]
[1764108444506,0.4834,2919.2,2919.1,3.4257134]
[1764108444989,0.9558,2919.2,2919.1,3.4257134]
[1764108445706,0.9558,2919.2,2919.0,6.85165341]
[1764108445921,0.002,2919.4,2919.0,6.85165341]
[1764108447215,0.002,2919.4,2919.0,10.27748417]
[1764108447509,0.002,2919.4,2919.0,6.85165341]
[1764108447711,0.4834,2919.1,2919.0,3.42582265]
[1764108447913,0.4834,2919.1,2919.0,4.15141676]
[1764108448316,0.4724,2919.3,2919.0,7.57724752]
[1764108448684,0.4834,2919.1,2919.0,3.42582265]
[1764108449202,0.4724,2919.3,2919.0,6.85165341]
[1764108450416,0.002,2919.4,2918.8,6.85211099]
[1764108450796,0.002,2919.4,2918.8,10.27817649]
[1764108451322,0.002,2919.4,2918.8,10.37253649]
[1764108452028,0.002,2919.4,2918.9,0.72559411]
[1764108452498,0.002,2919.4,2919.0,6.85166152]
[1764108452699,0.002,2919.4,2919.0,10.27749228]
[1764108454114,0.002,2919.4,2919.0,10.37185228]
[1764108454629,0.002,2919.4,2919.3,0.72559411]
[1764108454808,0.002,2919.4,2919.3,0.81995411]
[1764108455122,0.002,2919.4,2919.3,0.72559411]
[1764108455640,0.4854,2919.4,2919.2,3.42559605]
[1764108455844,0.4834,2919.3,2919.2,3.42559605]
[1764108456496,0.4744,2919.4,2919.2,6.8511921]
[1764108456895,0.002,2919.4,2919.1,6.8514268]
[1764108457096,0.4724,2919.3,2919.1,6.8514268]
[1764108457320,0.4834,2919.2,2919.1,3.4257134]
[1764108458023,0.9558,2919.2,2919.0,3.42581935]
[1764108458241,0.4834,2919.1,2919.0,3.42581935]
[1764108458448,0.9558,2919.1,2919.0,3.42581935]
[1764108458847,0.9558,2919.1,2918.9,3.42586091]
[1764108459551,0.002,2919.4,2918.9,10.27775717]
[1764108459755,0.002,2919.4,2919.2,0.09436]
[1764108459922,0.002,2919.4,2919.2,0.221]
[1764108460826,0.002,2919.4,2918.9,10.27775717]
[1764108461156,0.002,2919.4,2919.0,0.221]
[1764108461364,0.002,2919.4,2919.1,0.03425713]
[1764108461536,0.002,2919.4,2919.0,0.94659411]
[1764108461537,0.002,2919.4,2919.3,0.09436]
[1764108461724,0.002,2919.4,2919.3,0.499864]
[1764108462150,0.002,2919.4,2919.3,1.22545811]
[1764108462320,0.002,2919.4,2919.3,1.13109811]
[1764108462524,0.002,2919.4,2919.3,1.22545811]
[1764108462957,0.002,2919.4,2919.3,4.65093682]
[1764108464342,0.002,2919.4,2919.3,4.87193682]
[1764108467271,0.002,2919.4,2919.3,4.15107282]
[1764108467471,0.002,2919.4,2919.3,4.37207282]
[1764108469450,0.002,2919.4,2919.3,4.15107282]
[1764108469773,0.002,2919.4,2919.3,4.37107282]
[1764108471280,0.002,2919.4,2919.3,4.37107282]
[1764108471573,0.002,2919.4,2919.3,4.46543282]
[1764108472345,0.002,2919.4,2919.3,4.15107282]
[1764108472673,0.002,2919.4,2919.3,4.37107282]
[1764108475577,0.002,2919.4,2919.3,4.46543282]
[1764108477058,0.002,2919.4,2919.3,4.87093682]
[1764108477459,0.1819,2921.4,2919.3,28.64345966]
[1764108477786,0.1819,2921.4,2920.6,0.09436]
[1764108477951,0.4924,2921.3,2920.7,0.221]
[1764108478368,0.4924,2921.3,2920.8,4.14931363]
[1764108478757,0.002,2921.5,2920.8,9.36346673]
[1764108479091,0.002,2921.5,2920.8,4.14931363]
[1764108479092,0.4924,2921.4,2920.8,4.14931363]
[1764108479263,0.4924,2921.4,2920.8,4.46367363]
[1764108479659,0.4924,2921.4,2920.8,4.36931363]
[1764108479882,0.002,2921.5,2920.8,4.86917763]
[1764108480116,0.002,2921.5,2919.8,0.1464]
[1764108480117,1.1703,2920.9,2919.8,0.1464]
[1764108480273,0.8329,2920.8,2920.0,3.42461325]
[1764108480474,0.8329,2920.8,2920.0,10.27392831]
[1764108480674,0.4683,2920.7,2920.0,10.27392831]
[1764108481003,0.3646,2920.8,2920.1,0.0342454]
[1764108481181,0.1894,2920.9,2920.2,0.31536]
[1764108481389,0.6577,2920.9,2920.2,0.31536]
[1764108481886,0.4683,2920.8,2920.2,0.31536]
[1764108482212,0.1894,2920.9,2920.4,0.72559411]
[1764108482415,0.002,2920.9,2920.6,6.84790796]
[1764108482621,0.002,2920.9,2920.8,5.3421091]
[1764108483073,0.002,2920.9,2920.8,5.7812091]
[1764108483274,0.002,2920.9,2920.8,6.06770321]
[1764108483684,0.002,2920.9,2920.8,6.28770321]
[1764108484591,0.002,2920.9,2920.8,9.71142273]
[1764108485612,0.4887,2920.9,2920.8,4.14931363]
[1764108485914,0.4887,2920.9,2920.8,4.36931363]
[1764108486315,0.002,2920.9,2920.8,4.36931363]
[1764108488229,0.002,2920.9,2920.8,4.80841363]
[1764108488413,0.002,2920.9,2920.8,4.90277363]
[1764108488616,0.002,2920.9,2920.8,4.46367363]
[1764108489899,0.002,2920.9,2920.8,4.36931363]
[1764108490829,0.002,2920.9,2920.8,4.14931363]
[1764108491045,0.002,2920.9,2920.8,4.36931363]
[1764108491046,0.6777,2920.9,2920.8,4.36931363]
[1764108491235,0.002,2920.9,2920.8,5.34187363]
[1764108491546,0.002,2920.9,2920.8,5.74837763]
[1764108492112,0.002,2921.2,2921.1,0.499864]
[1764108492333,0.002,2921.2,2921.1,1.305364]
[1764108493247,0.002,2921.2,2921.1,4.7287319]
[1764108493601,0.002,2921.2,2921.1,5.1678319]
[1764108494222,0.002,2921.2,2921.1,5.89342601]
[1764108495463,0.002,2921.5,2921.4,0.09436]
[1764108495765,0.002,2921.5,2921.4,5.7476131]
[1764108495961,0.002,2921.5,2921.4,6.1867131]
[1764108496366,0.002,2921.5,2921.4,5.7476131]
[1764108496566,0.002,2921.5,2921.4,6.1867131]
[1764108497177,0.002,2921.5,2921.4,10.33532357]
[1764108497865,0.957,2921.5,2921.4,4.14861047]
[1764108498066,0.957,2921.5,2921.4,4.36861047]
[1764108501461,0.4887,2921.5,2921.4,4.36861047]
[1764108503168,0.9515,2921.5,2921.4,4.14861047]
[1764108507473,0.4887,2921.5,2921.4,4.14861047]
[1764108507664,0.9515,2921.5,2921.4,4.14861047]
[1764108508877,0.4887,2921.5,2921.4,4.14861047]
[1764108509175,0.9343,2921.5,2921.1,0.001]
[1764108509381,0.9343,2921.5,2921.1,3.42432978]
[1764108509382,0.4691,2921.2,2921.1,3.42432978]
[1764108509545,0.4691,2921.2,2921.1,4.14992389]
[1764108509746,0.9319,2921.2,2921.1,3.42432978]
[1764108509967,0.9319,2921.2,2921.1,4.14992389]
[1764108510342,0.4691,2921.2,2921.1,4.14992389]
[1764108510762,0.4648,2921.5,2921.1,4.14992389]
[1764108510763,0.002,2921.5,2921.1,11.53011969]
[1764108510973,0.002,2921.5,2921.2,5.54272701]
[1764108511177,0.002,2921.5,2921.4,0.4391]
[1764108511353,0.002,2921.5,2921.3,0.31436]
[1764108512682,0.002,2921.5,2921.4,3.51737636]
[1764108512846,0.002,2921.5,2921.4,4.14861047]
[1764108512847,0.4648,2921.5,2921.4,4.14861047]
[1764108513048,0.9343,2921.5,2921.4,3.42301636]
[1764108513971,0.002,2921.5,2921.4,3.42301636]
[1764108514148,0.4715,2921.5,2921.4,4.14861047]
[1764108515778,0.4715,2921.5,2921.4,3.42301636]
[1764108515985,0.9343,2921.5,2921.4,3.42301636]
[1764108516771,0.002,2921.5,2921.4,4.58771047]
[1764108516985,0.4715,2921.5,2921.4,4.14861047]
[1764108517774,0.4715,2921.5,2921.1,0.001]
[1764108517775,0.9343,2921.5,2921.1,0.001]
[1764108517959,0.4691,2921.2,2921.1,0.001]
[1764108518376,0.9319,2921.2,2921.1,0.001]
[1764108520358,4.35515071,2921.2,2921.1,0.001]
[1764108521115,0.9319,2921.2,2921.1,0.001]
[1764108525499,0.4691,2921.2,2921.1,0.001]
[1764108525701,0.9319,2921.2,2921.1,0.001]
[1764108526092,0.4691,2921.2,2921.1,0.001]
[1764108526798,0.9319,2921.2,2921.1,0.001]
[1764108529590,0.002,2921.5,2921.1,0.001]
[1764108529794,0.4648,2921.5,2921.1,0.001]
[1764108530799,0.002,2921.5,2921.2,0.09436]
[1764108531220,0.4814,2921.3,2921.1,6.8477358]
[1764108531399,0.4885,2921.4,2921.1,4.14996201]
[1764108531400,0.3883,2921.2,2921.1,4.14996201]
[1764108533226,0.8768,2921.2,2921.1,4.14996201]
[1764108533723,0.3883,2921.2,2921.1,4.14996201]
[1764108533926,0.8768,2921.2,2921.1,4.14996201]
[1764108534391,0.3883,2921.2,2921.1,4.14996201]
[1764108535399,0.8768,2921.2,2921.1,4.14996201]
[1764108536626,0.8768,2921.2,2921.1,0.001]
[1764108537197,4.30005071,2921.2,2921.1,0.001]
[1764108539939,0.8768,2921.2,2921.1,0.001]
[1764108540144,4.30005071,2921.2,2921.1,0.001]
[1764108541645,4.61604279,2921.2,2921.1,0.001]
[1764108542418,4.28395071,2921.2,2921.1,0.001]
[1764108543151,4.28595071,2921.2,2921.1,0.001]
[1764108546850,0.8627,2921.2,2921.1,0.001]
[1764108547050,4.28595071,2921.2,2921.1,0.001]
[1764108553569,0.3903,2921.2,2921.1,0.001]
[1764108559288,0.002,2921.2,2921.1,0.4401]
[1764108559486,0.002,2921.2,2921.1,1.0256]
[1764108559894,0.002,2921.2,2921.1,0.5865]
[1764108561255,0.002,2921.2,2921.1,4.0098679]
[1764108563673,0.002,2921.2,2921.1,3.8634679]
[1764108565000,0.002,2921.2,2921.1,4.0098679]
[1764108566504,0.002,2921.2,2921.1,3.8634679]
[1764108568107,0.002,2921.2,2921.1,4.0098679]
[1764108568599,0.002,2921.2,2921.1,4.4489679]
[1764108570107,0.002,2921.2,2921.1,4.0098679]
[1764108571012,0.002,2921.2,2921.1,5.17456201]
[1764108575818,0.002,2921.2,2921.1,4.73546201]
[1764108578324,0.002,2921.2,2921.1,4.58906201]
[1764108580328,0.002,2921.2,2921.1,5.17456201]
[1764108581019,0.002,2921.2,2921.1,4.73546201]
[1764108581631,0.002,2921.5,2921.4,0.405504]
[1764108581933,0.002,2921.5,2921.4,6.0310305]
[1764108582294,0.002,2921.5,2921.4,9.59115735]
[1764108582493,0.002,2921.8,2921.5,1.13109811]
[1764108582721,0.002,2921.8,2921.7,5.3719305]
[1764108583226,0.002,2921.8,2921.7,5.8110305]
[1764108583531,0.002,2921.8,2921.7,6.12746819]
[1764108583745,0.002,2922.1,2921.8,1.13109811]
[1764108583926,0.002,2922.1,2922.0,5.3719305]
[1764108584308,0.002,2922.1,2922.0,9.23334398]
[1764108584843,0.002,2922.9,2922.5,0.09436]
[1764108585046,0.002,2922.9,2922.8,4.29287239]
[1764108585342,0.002,2922.9,2922.8,5.1128265]
[1764108585542,0.002,2922.9,2922.8,6.0515265]
[1764108586209,0.002,2922.9,2922.8,9.87840726]
[1764108587910,0.002,2922.9,2922.8,10.09840726]
[1764108589843,0.002,2922.9,2922.8,9.87840726]
[1764108590045,0.002,2922.9,2922.8,10.09840726]
[1764108591851,0.6476,2924.1,2922.9,1.13109811]
[1764108592043,0.6476,2924.1,2923.7,3.70737239]
[1764108592249,0.4586,2924.0,2923.7,3.70737239]
[1764108592573,0.4975,2923.8,2923.7,7.12769595]
[1764108592948,0.4975,2923.8,2923.0,3.42111038]
[1764108592949,0.4975,2923.8,2922.2,0.4391]
[1764108593144,0.8353,2923.7,2922.8,3.70737239]
[1764108593476,0.8353,2923.7,2923.2,0.72559411]
[1764108593785,0.4586,2923.6,2923.2,0.72559411]
[1764108593982,0.4963,2923.3,2923.2,0.72559411]
[1764108594641,0.4963,2923.3,2923.2,4.1465027]
[1764108596375,0.4963,2923.3,2923.2,0.72559411]
[1764108596564,0.9549,2923.3,2922.9,4.36676218]
[1764108596760,0.4951,2923.0,2922.9,4.36676218]
[1764108597638,0.4951,2923.0,2922.9,4.14676218]
[1764108597842,0.9537,2923.0,2922.9,4.14676218]
[1764108599677,0.4975,2923.0,2922.9,7.85413457]
[1764108600451,0.9561,2923.0,2922.2,3.70737239]
[1764108600655,0.22,2923.5,2922.3,6.8439243]
[1764108600656,1.0449,2922.9,2922.3,6.8439243]
[1764108600976,0.465,2922.3,2922.2,3.42207659]
[1764108601157,0.465,2922.3,2922.2,4.1476707]
[1764108601347,0.9347,2922.3,2922.2,4.1476707]
[1764108605197,0.6682,2922.9,2922.3,0.72559411]
[1764108605361,0.465,2922.3,2922.2,0.72559411]
[1764108605685,0.465,2922.3,2922.2,4.14767336]
[1764108605983,0.9347,2922.3,2922.2,4.14767336]
[1764108609077,0.9347,2922.3,2922.0,4.4504964]
[1764108609268,0.465,2922.1,2921.8,6.84499409]
[1764108609586,0.1952,2922.0,2921.9,0.72559411]
[1764108609788,6.84279736,2922.8,2921.9,0.72559411]
[1764108609987,0.4697,2922.7,2922.1,3.70737239]
[1764108610288,0.465,2922.2,2922.1,3.70737239]
[1764108610486,0.465,2922.2,2921.9,0.72559411]
[1764108610662,0.3878,2922.0,2921.5,1.02832874]
[1764108610863,0.5898,2921.6,2921.1,0.001]
[1764108611075,0.465,2921.2,2921.1,0.001]
[1764108611279,0.465,2921.2,2921.1,0.72659411]
[1764108611480,0.9347,2921.2,2921.1,0.72659411]
[1764108613997,0.9347,2921.2,2921.1,4.14996201]
[1764108614403,0.1985,2922.0,2921.1,11.58219781]
[1764108614699,0.6682,2922.0,2921.6,3.70737239]
[1764108615799,0.4697,2922.4,2921.6,3.70737239]
[1764108616000,0.4697,2922.5,2921.7,6.84532976]
[1764108616294,0.4697,2922.4,2921.7,6.84532976]
[1764108617689,0.465,2921.8,2921.7,3.42266488]
[1764108620685,0.9616,2921.8,2921.5,0.72559411]
[1764108620914,0.3611,2921.7,2921.5,4.14845413]
[1764108621117,0.464,2921.6,2921.5,4.14845413]
[1764108621321,0.464,2921.6,2921.5,0.72559411]
[1764108621614,0.9606,2921.6,2921.5,0.72559411]
[1764108622215,0.9606,2921.6,2921.1,0.4707]
[1764108622216,0.9606,2921.6,2921.3,6.84625348]
[1764108622419,0.473,2921.4,2921.3,4.14871406]
[1764108623327,0.9696,2921.4,2921.3,4.14871406]
[1764108626807,0.473,2921.4,2921.3,4.14871406]
[1764108628608,0.473,2921.4,2921.3,7.85504347]
[1764108629309,0.473,2921.4,2921.3,7.85604347]
[1764108631438,0.473,2921.4,2921.3,4.14971406]
[1764108631620,0.9696,2921.4,2921.3,7.85604347]
[1764108632439,0.9696,2921.4,2921.3,0.001]
[1764108632640,4.39261636,2921.4,2921.3,0.001]
[1764108633931,4.79812036,2921.4,2921.3,0.001]
[1764108634135,4.79812036,2921.4,2921.1,0.001]
[1764108634136,8.53693884,2921.4,2921.1,0.001]
[1764108634317,0.758704,2921.2,2921.1,0.001]
[1764108634722,1.255304,2921.2,2921.1,0.001]
[1764108635531,4.67855471,2921.2,2921.1,0.001]
[1764108636340,4.67855471,2921.2,2920.9,0.001]
[1764108636341,2.09949811,2921.1,2920.9,0.001]
[1764108636540,5.49840157,2921.0,2920.9,0.001]
[1764108636742,1.38656816,2921.0,2920.9,0.001]
[1764108637748,4.4944851,2921.0,2920.9,0.001]
[1764108640168,0.473,2921.0,2920.9,3.70732941]
[1764108640453,0.9696,2921.0,2920.9,0.001]
[1764108641553,0.473,2921.0,2920.9,0.001]
[1764108643869,4.3930851,2921.0,2920.9,0.001]
[1764108644030,4.6130851,2921.0,2920.9,0.001]
[1764108644871,5.0185891,2921.0,2920.9,0.001]
[1764108645170,5.0185891,2921.0,2920.2,0.001]
[1764108645171,0.4615,2920.6,2920.2,0.001]
[1764108645452,1.82499811,2920.9,2920.2,0.001]
[1764108645453,0.3544,2920.3,2920.2,0.001]
[1764108645960,4.27530572,2920.3,2920.2,0.001]
[1764108650372,5.40640383,2920.3,2920.2,0.001]
[1764108650654,5.85805577,2920.3,2920.2,0.001]
[1764108651236,5.7207966,2920.3,2920.2,0.001]
[1764108651953,5.7207966,2920.3,2920.1,0.001]
[1764108651954,4.38990411,2920.2,2920.1,0.001]
[1764108652263,5.97713711,2920.0,2919.9,0.001]
[1764108652426,6.87432567,2920.0,2919.9,0.001]
[1764108652762,7.36342567,2920.0,2919.9,0.001]
[1764108653255,10.7880832,2920.0,2919.9,0.001]
[1764108653960,10.7880832,2920.0,2918.3,0.001]
[1764108653961,1.13109811,2919.4,2918.3,0.001]
[1764108654182,0.6601,2918.4,2918.3,0.001]
[1764108654328,0.8801,2918.4,2918.3,0.001]
[1764108654649,1.3692,2918.4,2918.3,0.001]
[1764108655724,0.185,2919.2,2918.3,1.0296]
[1764108655928,0.22,2919.1,2918.4,0.4411]
[1764108656176,0.7091,2919.1,2918.4,0.4411]
[1764108656545,0.4891,2919.0,2918.4,0.4411]
[1764108657348,3.42594813,2918.9,2918.4,0.4411]
[1764108658043,0.4891,2918.8,2918.4,0.4411]
[1764108658245,0.4907,2918.5,2918.3,0.001]
[1764108658454,0.3597,2918.4,2918.3,0.001]
[1764108658969,0.8488,2918.4,2918.3,0.001]
[1764108659973,4.27533508,2918.4,2918.3,0.001]
[1764108660174,0.8488,2918.4,2918.3,0.001]
[1764108661241,4.27533508,2918.4,2918.3,0.001]
[1764108662645,0.8488,2918.4,2918.3,0.001]
[1764108664383,4.27533508,2918.4,2918.3,0.001]
[1764108667087,4.27533508,2918.4,2917.5,0.12761356]
[1764108667088,3.78623508,2918.4,2917.5,0.12761356]
[1764108667294,3.78623508,2918.4,2914.5,0.89536679]
[1764108667295,3.78623508,2918.4,2914.5,3.01496585]
[1764108667296,30.0,2916.5,2914.5,3.01496585]
[1764108667503,2.13953417,2916.4,2915.1,0.36225553]
[1764108667790,0.405504,2916.1,2915.2,0.4569]
[1764108667961,1.13109811,2915.9,2914.4,0.199]
[1764108668166,0.405504,2915.7,2914.5,0.4569]
[1764108668348,0.405504,2915.5,2914.5,0.4569]
[1764108668562,0.405504,2915.3,2914.5,0.4569]
[1764108668764,0.4757,2915.4,2914.4,0.199]
[1764108668765,0.405504,2915.1,2914.4,0.199]
[1764108670302,0.1994,2915.9,2914.5,0.4569]
[1764108670479,1.35109811,2915.7,2915.1,0.462]
[1764108671784,1.35109811,2915.7,2914.4,7.06143155]
[1764108671785,0.433,2915.2,2914.5,0.4569]
[1764108671947,0.625504,2915.1,2914.4,0.199]
[1764108672351,0.405504,2914.9,2914.2,0.72559411]
[1764108672584,0.405504,2914.9,2914.0,0.6559]
[1764108672773,0.1994,2914.8,2914.0,0.6559]
[1764108672973,0.22,2914.7,2914.0,0.6559]
[1764108673154,0.22,2914.7,2914.0,4.08759499]
[1764108673756,0.22,2914.7,2914.0,0.6559]
[1764108674383,3.65099762,2914.7,2914.0,4.08760056]
[1764108674753,3.65099762,2914.7,2914.0,0.6559]
[1764108674954,3.65099762,2914.7,2914.0,4.08759733]
[1764108677292,3.65099762,2914.7,2914.0,0.6559]
[1764108677458,3.65099762,2914.7,2914.0,4.08759398]
[1764108678283,0.22,2914.7,2914.0,4.08759398]
[1764108678589,3.65091463,2914.7,2914.0,4.08759398]
[1764108680313,7.08182926,2914.7,2914.0,4.08759398]
[1764108680902,3.65091463,2914.7,2914.0,4.08759398]
[1764108681281,7.08182926,2914.7,2914.0,0.6559]
[1764108681476,7.08182926,2914.7,2914.0,4.08758467]
[1764108682004,7.08182926,2914.7,2914.0,4.08760182]
[1764108682879,7.08182926,2914.7,2914.0,4.08860182]
[1764108683080,7.08182926,2914.7,2914.0,4.03486182]
[1764108683491,3.65091463,2914.7,2914.0,4.03486182]
[1764108685008,3.65091463,2914.7,2914.0,0.60316]
[1764108685208,3.65091463,2914.7,2914.0,4.03486634]
[1764108685910,3.65091463,2914.7,2914.1,0.4698]
[1764108686207,1.20409411,2915.5,2914.6,0.4957]
[1764108686513,7.5586221,2915.4,2914.7,0.4957]
[1764108687317,0.4785,2915.3,2914.7,0.4957]
[1764108688409,3.43029637,2915.2,2914.7,0.4957]
[1764108688787,3.43029637,2915.2,2914.7,0.9655]
[1764108689205,6.86059274,2915.2,2914.7,0.9655]
[1764108690493,0.4785,2915.2,2914.7,0.9655]
[1764108690705,3.43019639,2915.3,2915.1,0.4957]
[1764108690911,3.43019639,2915.3,2914.8,0.4698]
[1764108692918,3.43019639,2915.3,2914.8,3.90054745]
[1764108693119,3.43019639,2915.3,2914.8,0.421434]
[1764108693313,3.90869639,2915.3,2914.8,0.421434]
[1764108693513,7.33889278,2915.3,2914.8,0.421434]
[1764108693721,3.90869639,2915.3,2914.8,0.421434]
[1764108694721,0.405504,2914.8,2914.0,0.001]
[1764108694919,0.4635,2914.1,2914.0,0.001]
[1764108695220,0.6835,2914.1,2914.0,0.001]
[1764108695923,1.162,2914.1,2914.0,0.001]
[1764108696218,1.88592572,2914.1,2914.0,0.001]
[1764108696398,3.10429474,2914.1,2914.0,0.001]
[1764108696598,6.53588596,2914.1,2914.0,0.001]
[1764108697021,5.63169383,2914.1,2914.0,0.001]
[1764108697227,0.405504,2914.0,2913.7,0.001]
[1764108697389,2.04768646,2913.8,2913.7,0.001]
[1764108697589,3.08578907,2913.8,2913.7,0.001]
[1764108697809,3.56428907,2913.8,2913.7,0.001]
[1764108698284,3.08578907,2913.8,2913.7,0.001]
[1764108698529,3.56428907,2913.8,2913.7,0.001]
[1764108699125,7.4017376,2913.8,2913.7,0.001]
[1764108699292,5.58705114,2913.8,2913.7,0.001]
[1764108699690,5.18154714,2913.8,2913.7,0.001]
[1764108700399,4.47004714,2913.8,2913.7,0.001]
[1764108700604,5.15794714,2913.8,2913.7,0.001]
[1764108700804,5.63644714,2913.8,2913.7,0.001]
[1764108701118,7.44790636,2913.8,2913.7,0.001]
[1764108701323,5.63644714,2913.8,2913.7,0.001]
[1764108702203,6.04195114,2913.8,2913.7,0.001]
[1764108702526,7.85341036,2913.8,2913.7,0.001]
[1764108703224,6.86436024,2913.6,2912.7,3.86243184]
[1764108703521,0.90480514,2913.4,2912.7,3.86243184]
[1764108703825,1.25810261,2913.3,2912.7,0.4698]
[1764108704022,1.03810261,2913.2,2912.6,0.1831]
[1764108704198,0.6985,2913.3,2912.6,0.1831]
[1764108704199,1.03810261,2913.1,2912.6,0.1831]